[Event "36th Belgrade Trophy 2023"]
[Site "Belgrade"]
[Date "2023.12.03"]
[Round "9.6"]
[White "Stojanovic, Mihajlo"]
[Black "Javadov, Habil"]
[Result "1-0"]
[ECO "D37"]
[WhiteElo "2490"]
[BlackElo "2026"]
[Annotator "ChessBase"]
[PlyCount "119"]
[EventDate "2023.10.23"]
[EventType "swiss"]
[EventCountry "SRB"]
[SourceTitle "playchess.com"]
[Source "ChessBase"]
[SourceQuality "1"]
[TimeControl "40/5400+30:900+30"]

1. d4 {[%emt 0:00:05]} e6 {[%emt 0:00:07]} 2. c4 {[%emt 0:00:24]} d5 {[%emt 0:00:07]} 3. Nc3 {[%emt 0:00:11]} a6 {[%emt 0:00:20]} 4. cxd5 {[%emt 0:01:27]} exd5 {[%emt 0:00:04]} 5. Nf3 {[%emt 0:00:18]} Nf6 {[%emt 0:00:06]} 6. Bg5 {[%emt 0:00:26]} Be6 {[%emt 0:00:10]} 7. e3 {[%emt 0:00:59]} Nbd7 {[%emt 0:00:21]} 8. Bd3 {[%emt 0:00:27]} Bd6 {[%emt 0:00:19]} 9. O-O {[%emt 0:00:38]} c6 {[%emt 0:00:18]} 10. h3 {[%emt 1:30:35]} Qc7 {[%emt 1:33:38]} 11. Qd2 {[%emt 0:00:30]} h6 {[%emt 0:00:30]} 12. Bf4 {[%emt 0:00:30]} O-O {[%emt 0:00:00]} 13. Rfe1 {[%emt 0:00:30]} Rfe8 {[%emt 0:01:00]} 14. Rac1 {[%emt 0:00:00]} Rac8 {[%emt 0:00:00]} 15. a3 {[%emt 0:01:00]} Nh5 {[%emt 0:01:00]} 16. Bxd6 {[%emt 0:00:00]} Qxd6 {[%emt 0:00:00]} 17. Na4 {[%emt 0:01:00]} Nhf6 {[%emt 0:01:00]} 18. Qb4 {[%emt 0:00:30]} Qxb4 {[%emt 0:00:00]} 19. axb4 {[%emt 0:00:00]} Ne4 {[%emt 0:00:00]} 20. Nc5 {[%emt 0:00:00]} Nexc5 {[%emt 0:00:00]} 21. bxc5 {[%emt 0:00:00]} Re7 {[%emt 0:02:00]} 22. Nd2 {[%emt 0:00:00]} Nf6 {[%emt 0:00:30]} 23. f3 {[%emt 0:00:00]} Rd8 {[%emt 0:00:30]} 24. Kf2 {[%emt 0:00:00]} Kf8 {[%emt 0:00:30]} 25. g4 {[%emt 0:03:30]} Bc8 {[%emt 0:00:30]} 26. Nf1 {[%emt 0:00:00]} g6 {[%emt 0:00:00]} 27. Ng3 {[%emt 0:00:00]} Kg7 {[%emt 0:01:00]} 28. Rcd1 {[%emt 0:01:30]} Be6 {[%emt 0:00:30]} 29. Rd2 {[%emt 0:00:00]} Nh7 {[%emt 0:00:30]} 30. Bf1 {[%emt 0:00:00]} Red7 {[%emt 0:00:00]} 31. Ra1 {[%emt 0:00:00]} f5 {[%emt 0:01:00]} 32. gxf5 {[%emt 0:00:00]} Bxf5 33. Nxf5+ {[%emt 0:00:00]} gxf5 {[%emt 0:00:00]} 34. Bd3 Kf6 {[%emt 0:00:00]} 35. Rg1 {[%emt 0:00:00]} Ng5 {[%emt 0:00:00]} 36. Rg3 {[%emt 0:00:00]} Rg7 {[%emt 0:00:00]} 37. h4 {[%emt 0:00:00]} Ne6 {[%emt 0:00:00]} 38. Rxg7 {[%emt 0:00:00]} Nxg7 {[%emt 0:00:00]} 39. Rd1 {[%emt 0:05:30]} Re8 {[%emt 0:04:00]} 40. Rg1 {[%emt 0:00:00]} Re6 {[%emt 0:00:30]} 41. b4 {[%emt 0:16:00]} Kf7 {[%emt 0:15:30]} 42. e4 {[%emt 0:00:30]} fxe4 {[%emt 0:00:30]} 43. fxe4 {[%emt 0:00:30]} Rf6+ {[%emt 0:00:30]} 44. Ke3 {[%emt 0:00:30]} dxe4 {[%emt 0:00:30]} 45. Bc4+ {[%emt 0:00:30]} Kf8 {[%emt 0:00:00]} 46. Kxe4 {[%emt 0:00:30]} Rf2 {[%emt 0:01:00]} 47. Rf1 {[%emt 0:00:30]} Rxf1 {[%emt 0:00:30]} 48. Bxf1 {[%emt 0:00:30]} Ke7 {[%emt 0:00:30]} 49. Ke5 {[%emt 0:00:30]} Ne8 {[%emt 0:00:00]} 50. Bc4 Nf6 {[%emt 0:00:00]} 51. Be6 h5 {[%emt 0:01:30]} 52. Kf5 {[%emt 0:01:30]} Ng4 {[%emt 0:00:30]} 53. Bb3 {[%emt 0:00:30]} Ne3+ {[%emt 0:00:30]} 54. Kg5 {[%emt 0:00:30]} Ng2 {[%emt 0:00:30]} 55. d5 {[%emt 0:00:30]} Kd7 {[%emt 0:00:00]} 56. d6 b6 57. Kxh5 {[%emt 0:01:00]} Nf4+ {[%emt 0:01:30]} 58. Kg5 {[%emt 0:00:30]} Nd3 {[%emt 0:00:30]} 59. h5 {[%emt 0:00:30]} bxc5 {[%emt 0:00:30]} 60. h6 {[%emt 0:00:30]} 1-0

[Event "36th Belgrade Trophy 2023"]
[Site "Belgrade"]
[Date "2023.12.03"]
[Round "9.7"]
[White "Milosevic, Milos"]
[Black "Savic, Mihailo S"]
[Result "1-0"]
[ECO "C14"]
[WhiteElo "2362"]
[BlackElo "2157"]
[Annotator "ChessBase"]
[PlyCount "49"]
[EventDate "2023.10.23"]
[EventType "swiss"]
[EventCountry "SRB"]
[SourceTitle "playchess.com"]
[Source "ChessBase"]
[SourceQuality "1"]
[TimeControl "40/5400+30:900+30"]

1. e4 {[%emt 0:08:43]} e6 {[%emt 0:00:30]} 2. d4 {[%emt 0:00:15]} d5 {[%emt 0:00:06]} 3. Nc3 {[%emt 0:00:06]} Nf6 {[%emt 0:00:03]} 4. Bg5 {[%emt 0:00:07]} Be7 {[%emt 0:00:07]} 5. e5 {[%emt 0:00:04]} Nfd7 {[%emt 0:00:04]} 6. h4 {[%emt 0:00:02]} Nc6 {[%emt 0:00:05]} 7. Qd2 {[%emt 0:00:05]} h6 {[%emt 0:00:22]} 8. Be3 {[%emt 0:00:39]} Nb6 {[%emt 0:00:45]} 9. h5 {[%emt 0:01:10]} a6 {[%emt 0:02:16]} 10. f4 {[%emt 0:05:39]} Bh4+ {[%emt 0:01:38]} 11. Kd1 {[%emt 0:02:56]} Be7 {[%emt 0:05:50]} 12. a3 {[%emt 0:00:21]} Bd7 {[%emt 0:26:00]} 13. Nf3 {[%emt 0:00:31]} Na7 {[%emt 0:06:02]} 14. b3 {[%emt 0:01:44]} Qc8 {[%emt 0:10:28]} 15. Qf2 {[%emt 0:03:10]} Bb5 {[%emt 0:05:59]} 16. a4 {[%emt 0:03:39]} Bxf1 {[%emt 0:00:06]} 17. Rxf1 {[%emt 0:00:04]} Nd7 {[%emt 0:06:17]} 18. Qg3 {[%emt 0:00:37]} c5 {[%emt 0:07:11]} 19. Qxg7 {[%emt 0:00:14]} Rf8 {[%emt 0:00:06]} 20. f5 {[%emt 0:04:34]} cxd4 {[%emt 0:01:18]} 21. Bxd4 {[%emt 0:00:03]} Bc5 {[%emt 0:01:24]} 22. fxe6 {[%emt 0:00:26]} fxe6 {[%emt 0:00:26]} 23. Kd2 {[%emt 0:02:57]} Nc6 {[%emt 0:00:47]} 24. Bxc5 {[%emt 0:00:34]} Nxc5 {[%emt 0:00:06]} 25. Nd4 {[%emt 0:00:27]} 1-0

[Event "36th Belgrade Trophy 2023"]
[Site "Belgrade"]
[Date "2023.12.03"]
[Round "9.8"]
[White "Kilic, Eray"]
[Black "Pavlovic, Luka"]
[Result "1-0"]
[ECO "B90"]
[WhiteElo "2446"]
[BlackElo "2098"]
[Annotator "ChessBase"]
[PlyCount "119"]
[EventDate "2023.10.23"]
[EventType "swiss"]
[EventCountry "SRB"]
[SourceTitle "playchess.com"]
[Source "ChessBase"]
[SourceQuality "1"]
[TimeControl "40/5400+30:900+30"]

1. Nf3 {[%emt 0:00:03]} c5 {[%emt 0:00:18]} 2. e4 {[%emt 0:00:21]} d6 {[%emt 0:00:06]} 3. d4 {[%emt 0:00:15]} cxd4 {[%emt 0:00:07]} 4. Nxd4 {[%emt 0:00:02]} Nf6 {[%emt 0:00:08]} 5. Nc3 {[%emt 0:00:02]} a6 {[%emt 0:00:07]} 6. Bd3 {[%emt 0:00:02]} e5 {[%emt 0:00:49]} 7. Nde2 {[%emt 0:04:01]} Be7 {[%emt 0:03:26]} 8. O-O {[%emt 0:00:05]} Nc6 {[%emt 0:05:16]} 9. a3 {[%emt 0:00:03]} O-O {[%emt 0:04:27]} 10. Nd5 {[%emt 0:04:05]} Nxd5 {[%emt 0:09:37]} 11. exd5 {[%emt 0:00:11]} Nb8 {[%emt 0:00:12]} 12. f4 {[%emt 0:00:20]} f5 {[%emt 0:09:05]} 13. Be3 {[%emt 0:01:32]} b5 {[%emt 0:09:22]} 14. c4 {[%emt 0:00:28]} e4 {[%emt 0:03:27]} 15. Bb1 {[%emt 0:02:30]} bxc4 {[%emt 0:09:18]} 16. Ba2 {[%emt 0:00:04]} Nd7 {[%emt 0:04:00]} 17. Nd4 {[%emt 0:01:13]} Nf6 {[%emt 0:01:00]} 18. Nc6 {[%emt 0:00:28]} Qe8 {[%emt 0:01:54]} 19. Bxc4 {[%emt 0:00:28]} Ng4 {[%emt 0:05:57]} 20. Bd4 {[%emt 0:00:04]} Bf6 {[%emt 0:00:52]} 21. h3 {[%emt 0:00:09]} Bxd4+ {[%emt 0:00:46]} 22. Qxd4 {[%emt 0:00:04]} Nf6 {[%emt 0:01:05]} 23. b4 {[%emt 0:00:12]} Bb7 {[%emt 0:05:23]} 24. a4 {[%emt 0:01:38]} Qf7 {[%emt 0:04:50]} 25. b5 {[%emt 0:04:19]} Nd7 {[%emt 0:01:34]} 26. Rab1 {[%emt 0:02:46]} Nc5 {[%emt 0:01:29]} 27. bxa6 {[%emt 0:00:08]} Bxa6 {[%emt 0:00:29]} 28. Bxa6 {[%emt 0:00:04]} Rxa6 {[%emt 0:00:22]} 29. a5 {[%emt 0:00:04]} Qc7 {[%emt 0:03:32]} 30. Rb5 {[%emt 0:00:24]} Rfa8 {[%emt 0:05:00]} 31. Rfb1 {[%emt 0:01:03]} Rxa5 {[%emt 0:00:52]} 32. Nxa5 {[%emt 0:00:50]} Rxa5 {[%emt 0:00:47]} 33. Qb4 {[%emt 0:00:57]} Ra2 {[%emt 0:02:49]} 34. Rb8+ {[%emt 0:00:58]} Kf7 {[%emt 0:00:06]} 35. Qb5 {[%emt 0:01:37]} Qe7 {[%emt 0:05:02]} 36. Rc1 {[%emt 0:00:08]} Ra7 {[%emt 0:02:15]} 37. Qc6 {[%emt 0:02:42]} Rc7 {[%emt 0:01:00]} 38. Qb6 {[%emt 0:00:01]} e3 {[%emt 0:01:44]} 39. Re1 {[%emt 0:04:56]} e2 {[%emt 0:00:44]} 40. Rxe2 {[%emt 0:00:00]} Qxe2 {[%emt 0:00:00]} 41. Qxc7+ {[%emt 0:01:20]} Qe7 {[%emt 0:00:52]} 42. Qxe7+ {[%emt 0:00:02]} Kxe7 {[%emt 0:02:54]} 43. Ra8 {[%emt 0:00:01]} h6 {[%emt 0:07:59]} 44. Kf1 {[%emt 0:00:55]} Ne4 {[%emt 0:03:10]} 45. h4 {[%emt 0:02:02]} g5 {[%emt 0:02:00]} 46. hxg5 {[%emt 0:00:38]} hxg5 {[%emt 0:00:15]} 47. fxg5 {[%emt 0:00:01]} Nxg5 {[%emt 0:00:42]} 48. Ke2 {[%emt 0:00:01]} Kf6 {[%emt 0:01:16]} 49. Re8 {[%emt 0:00:01]} f4 {[%emt 0:00:53]} 50. Kd3 {[%emt 0:00:43]} Kf5 {[%emt 0:00:25]} 51. Kd4 {[%emt 0:00:27]} f3 {[%emt 0:00:22]} 52. Rf8+ {[%emt 0:00:11]} Kg4 {[%emt 0:00:21]} 53. gxf3+ {[%emt 0:00:04]} Nxf3+ {[%emt 0:00:03]} 54. Ke4 {[%emt 0:00:05]} Nd2+ {[%emt 0:01:25]} 55. Ke3 {[%emt 0:00:02]} Nc4+ {[%emt 0:00:15]} 56. Kd4 {[%emt 0:00:01]} Na3 {[%emt 0:00:48]} 57. Rb8 {[%emt 0:00:20]} Nc2+ {[%emt 0:00:26]} 58. Ke4 {[%emt 0:00:04]} Na3 {[%emt 0:00:17]} 59. Kd3 {[%emt 0:00:01]} Kf4 {[%emt 0:00:16]} 60. Rb3 {[%emt 0:00:04]} 1-0

[Event "36th Belgrade Trophy 2023"]
[Site "Belgrade"]
[Date "2023.12.03"]
[Round "9.9"]
[White "Eric, Jovana"]
[Black "Antic, Dejan"]
[Result "1/2-1/2"]
[ECO "C17"]
[WhiteElo "2112"]
[BlackElo "2362"]
[Annotator "ChessBase"]
[PlyCount "133"]
[EventDate "2023.10.23"]
[EventType "swiss"]
[EventCountry "SRB"]
[SourceTitle "playchess.com"]
[Source "ChessBase"]
[SourceQuality "1"]
[TimeControl "40/5400+30:900+30"]

1. e4 {[%emt 1:31:00]} e6 {[%emt 1:31:00]} 2. d4 {[%emt 0:00:00]} d5 {[%emt 0:00:30]} 3. Nc3 {[%emt 0:00:00]} Bb4 {[%emt 0:00:30]} 4. e5 {[%emt 0:01:30]} c5 {[%emt 0:00:30]} 5. Bd2 {[%emt 0:00:30]} Ne7 {[%emt 0:00:30]} 6. a3 {[%emt 0:00:30]} Bxc3 {[%emt 0:00:00]} 7. Bxc3 {[%emt 0:00:30]} b6 {[%emt 0:01:00]} 8. Nf3 {[%emt 0:00:30]} Ba6 {[%emt 0:00:30]} 9. Bxa6 {[%emt 0:00:30]} Nxa6 {[%emt 0:00:30]} 10. h4 {[%emt 0:00:30]} Rc8 {[%emt 0:00:30]} 11. h5 {[%emt 0:00:30]} h6 {[%emt 0:00:30]} 12. Qe2 {[%emt 0:00:30]} Nb8 {[%emt 0:00:30]} 13. Rd1 {[%emt 0:00:30]} Nbc6 {[%emt 0:00:30]} 14. O-O {[%emt 0:00:30]} O-O {[%emt 0:00:30]} 15. Be1 {[%emt 0:00:30]} Qc7 {[%emt 0:00:30]} 16. c3 {[%emt 0:00:30]} f6 {[%emt 0:00:30]} 17. Bd2 {[%emt 0:00:30]} cxd4 {[%emt 0:00:30]} 18. exf6 {[%emt 0:00:30]} Rxf6 {[%emt 0:00:30]} 19. Nxd4 {[%emt 0:00:30]} e5 {[%emt 0:00:30]} 20. Nxc6 {[%emt 0:00:30]} Nxc6 {[%emt 0:00:30]} 21. Be3 {[%emt 0:00:30]} Qf7 {[%emt 0:00:30]} 22. Qg4 {[%emt 0:00:30]} Rf8 {[%emt 0:00:30]} 23. Qg3 {[%emt 0:00:30]} Kh8 {[%emt 0:00:30]} 24. Rd2 {[%emt 0:00:30]} Rd8 {[%emt 0:00:30]} 25. Rfd1 {[%emt 0:00:30]} Rfd6 {[%emt 0:00:30]} 26. Qg4 {[%emt 0:00:00]} Qf6 {[%emt 0:00:00]} 27. Qg3 {[%emt 0:00:00]} Qf7 28. Qg4 Qf6 29. Re2 Qf7 30. f4 d4 31. cxd4 exd4 {[%emt 0:03:00]} 32. Red2 {[%emt 0:03:30]} Rd5 {[%emt 0:00:00]} 33. Bf2 {[%emt 0:00:30]} d3 {[%emt 0:01:00]} 34. Qf3 {[%emt 0:00:00]} Qf5 {[%emt 0:00:30]} 35. g4 {[%emt 0:01:00]} Qd7 {[%emt 0:00:30]} 36. Kg2 {[%emt 0:00:30]} Nd4 {[%emt 0:00:30]} 37. Bxd4 {[%emt 0:00:30]} Rxd4 {[%emt 0:00:30]} 38. Kg3 {[%emt 0:00:30]} Qd6 {[%emt 0:00:30]} 39. Re1 {[%emt 0:00:30]} Rc8 {[%emt 0:00:30]} 40. Re3 {[%emt 0:00:30]} Rd8 {[%emt 0:00:30]} 41. Re4 {[%emt 0:15:30]} Rxe4 {[%emt 0:15:30]} 42. Qxe4 {[%emt 0:00:30]} Qc5 {[%emt 0:00:30]} 43. Rxd3 {[%emt 0:00:30]} Qg1+ {[%emt 0:00:30]} 44. Kf3 {[%emt 0:00:30]} Qh1+ {[%emt 0:00:00]} 45. Ke3 {[%emt 0:00:00]} Qg1+ {[%emt 0:00:00]} 46. Kf3 Qh1+ 47. Ke3 {[%emt 0:01:30]} Qc1+ {[%emt 0:02:00]} 48. Kf3 {[%emt 0:00:30]} Rf8 {[%emt 0:00:30]} 49. Re3 {[%emt 0:00:30]} Qf1+ {[%emt 0:00:30]} 50. Kg3 {[%emt 0:00:30]} Qg1+ {[%emt 0:00:30]} 51. Kh3 {[%emt 0:00:30]} Qf2 {[%emt 0:00:30]} 52. Rf3 {[%emt 0:00:30]} Qxb2 {[%emt 0:00:30]} 53. g5 {[%emt 0:00:30]} Qa1 {[%emt 0:00:30]} 54. g6 {[%emt 0:00:30]} Qh1+ {[%emt 0:00:30]} 55. Kg4 {[%emt 0:00:30]} Qg2+ {[%emt 0:00:30]} 56. Kh4 {[%emt 0:00:30]} b5 {[%emt 0:00:30]} 57. Re3 {[%emt 0:00:30]} Qf2+ {[%emt 0:00:00]} 58. Kg4 {[%emt 0:00:00]} a5 {[%emt 0:00:00]} 59. Rf3 {[%emt 0:00:00]} Qg2+ {[%emt 0:00:36]} 60. Kh4 {[%emt 0:00:00]} Qf2+ {[%emt 0:01:24]} 61. Kg4 {[%emt 0:02:00]} Qg1+ {[%emt 0:00:30]} 62. Kh4 {[%emt 0:00:30]} Qh2+ {[%emt 0:00:00]} 63. Kg4 b4 {[%emt 0:01:00]} 64. axb4 {[%emt 0:01:00]} a4 {[%emt 0:00:30]} 65. Qd4 {[%emt 0:00:30]} Qg2+ {[%emt 0:00:30]} 66. Kh4 {[%emt 0:00:30]} Qh2+ {[%emt 0:00:30]} 67. Kg4 {[%emt 0:00:00]} 1/2-1/2

[Event "36th Belgrade Trophy 2023"]
[Site "Belgrade"]
[Date "2023.12.03"]
[Round "9.10"]
[White "Stanojevic, Ilija"]
[Black "Popchev, Milko"]
[Result "1-0"]
[ECO "C41"]
[WhiteElo "2117"]
[BlackElo "2244"]
[Annotator "ChessBase"]
[PlyCount "79"]
[EventDate "2023.10.23"]
[EventType "swiss"]
[EventCountry "SRB"]
[SourceTitle "playchess.com"]
[Source "ChessBase"]
[SourceQuality "1"]
[TimeControl "40/5400+30:900+30"]

1. d4 {[%emt 1:31:00]} d6 {[%emt 1:31:00]} 2. e4 {[%emt 0:00:30]} e5 {[%emt 0:00:30]} 3. Nf3 {[%emt 0:00:30]} exd4 {[%emt 0:00:00]} 4. Nxd4 {[%emt 0:00:30]} Nf6 {[%emt 0:00:00]} 5. Nc3 {[%emt 0:00:30]} Be7 {[%emt 0:01:30]} 6. Bf4 {[%emt 0:00:30]} O-O {[%emt 0:00:00]} 7. Qd2 {[%emt 0:00:30]} c6 {[%emt 0:01:00]} 8. O-O-O {[%emt 0:00:30]} d5 {[%emt 0:00:30]} 9. f3 {[%emt 0:00:30]} a6 {[%emt 0:00:30]} 10. exd5 {[%emt 0:00:30]} Nxd5 {[%emt 0:00:00]} 11. Nxd5 {[%emt 0:00:30]} Qxd5 {[%emt 0:01:00]} 12. Nb3 {[%emt 0:00:30]} Qxd2+ {[%emt 0:00:30]} 13. Rxd2 {[%emt 0:00:30]} Nd7 {[%emt 0:00:00]} 14. Bd6 {[%emt 0:00:00]} Bxd6 15. Rxd6 a5 {[%emt 0:00:00]} 16. a4 Re8 {[%emt 0:02:00]} 17. Bd3 {[%emt 0:02:00]} Ne5 {[%emt 0:00:00]} 18. Be2 Kf8 {[%emt 0:00:00]} 19. Rhd1 Ng6 {[%emt 0:00:00]} 20. Bf1 Ra7 {[%emt 0:00:00]} 21. Nc5 b6 {[%emt 0:00:00]} 22. Ne4 Rc7 {[%emt 0:00:00]} 23. Bc4 h6 {[%emt 0:03:30]} 24. Rd8 {[%emt 0:03:30]} Ne5 {[%emt 0:00:00]} 25. Bb3 Bd7 {[%emt 0:01:00]} 26. Rxe8+ {[%emt 0:00:00]} Bxe8 {[%emt 0:00:00]} 27. Rd8 {[%emt 0:00:00]} Ke7 {[%emt 0:00:00]} 28. Rb8 Nd7 {[%emt 0:00:00]} 29. Ra8 f5 {[%emt 0:00:00]} 30. Ng3 g6 {[%emt 0:00:00]} 31. h4 Nf6 {[%emt 0:00:00]} 32. Rb8 {[%emt 0:00:00]} Nd7 {[%emt 0:00:00]} 33. Ra8 h5 {[%emt 0:04:00]} 34. Ne2 {[%emt 0:05:00]} Nc5 {[%emt 0:00:30]} 35. Nf4 {[%emt 0:00:30]} Nxb3+ {[%emt 0:00:00]} 36. cxb3 Bf7 {[%emt 0:00:00]} 37. Kc2 c5 {[%emt 0:01:30]} 38. Kc3 {[%emt 0:01:30]} c4 {[%emt 0:00:30]} 39. Kd4 {[%emt 0:00:00]} cxb3 {[%emt 0:00:00]} 40. Rb8 {[%emt 0:00:00]} 1-0

[Event "36th Belgrade Trophy 2023"]
[Site "Belgrade"]
[Date "2023.12.03"]
[Round "9.11"]
[White "Poleksic, Dusan"]
[Black "Scekic, Veljko"]
[Result "1/2-1/2"]
[ECO "D13"]
[WhiteElo "2068"]
[BlackElo "2211"]
[Annotator "RC"]
[PlyCount "83"]
[EventDate "2023.10.23"]
[EventType "swiss"]
[EventCountry "SRB"]
[SourceTitle "playchess.com"]
[Source "ChessBase"]
[SourceQuality "1"]
[TimeControl "40/5400+30:900+30"]

1. d4 {[%emt 1:31:00]} d5 {[%emt 0:00:42]} 2. c4 c6 {[%emt 0:00:07]} 3. cxd5 cxd5 {[%emt 1:31:11]} 4. Nf3 {[%emt 0:00:00]} Nc6 {[%emt 0:00:00]} 5. Nc3 Nf6 {[%emt 0:00:00]} 6. Bf4 a6 {[%emt 0:00:00]} 7. h3 g6 {[%emt 0:00:00]} 8. e3 Bg7 {[%emt 0:00:00]} 9. Ne5 {[%emt 0:00:00]} Nd7 {[%emt 0:00:00]} 10. Nxd7 Qxd7 {[%emt 0:00:00]} 11. Qb3 e6 {[%emt 0:00:00]} 12. Na4 Qd8 {[%emt 0:00:00]} 13. Nb6 Ra7 {[%emt 0:00:00]} 14. Bd6 Bf8 {[%emt 0:05:30]} 15. Bxf8 {[%emt 0:07:00]} Kxf8 {[%emt 0:00:00]} 16. Be2 Kg7 {[%emt 0:00:00]} 17. Rc1 Qd6 {[%emt 0:01:30]} 18. Rc5 {[%emt 0:01:30]} Bd7 {[%emt 0:00:30]} 19. O-O {[%emt 0:00:00]} Ne7 20. Nxd7 {[%emt 0:01:00]} Qxd7 {[%emt 0:00:00]} 21. Qb6 Nc6 {[%emt 0:00:00]} 22. Rfc1 Rha8 {[%emt 0:00:00]} 23. Bd1 Qd8 {[%emt 0:00:00]} 24. Qxd8 Nxd8 {[%emt 0:03:00]} 25. Rc7 {[%emt 0:02:30]} Kf8 {[%emt 0:00:00]} 26. h4 h6 {[%emt 0:00:00]} 27. h5 g5 {[%emt 0:01:30]} 28. R1c3 {[%emt 0:01:30]} b5 {[%emt 0:00:30]} 29. Bf3 {[%emt 0:00:30]} Rxc7 {[%emt 0:00:00]} 30. Rxc7 {[%emt 0:00:30]} Rb8 {[%emt 0:00:00]} 31. Kf1 Rb6 {[%emt 0:01:30]} 32. Be2 {[%emt 0:01:00]} Rb7 {[%emt 0:00:30]} 33. Rxb7 {[%emt 0:00:00]} Nxb7 {[%emt 0:00:00]} 34. a4 Nd6 {[%emt 0:00:00]} 35. Bd3 bxa4 {[%emt 0:00:00]} 36. Ke2 a5 {[%emt 0:00:00]} 37. Kd2 Ke7 {[%emt 0:00:00]} 38. Bc2 Nc4+ {[%emt 0:00:00]} 39. Kc3 Nb6 {[%emt 0:00:00]} 40. Bd3 f5 {[%emt 0:04:00]} 41. Bb5 {[%emt 0:19:30]} Kd6 {[%emt 0:15:30]} 42. Kc2 {[%emt 0:00:00]} 1/2-1/2

[Event "36th Belgrade Trophy 2023"]
[Site "Belgrade"]
[Date "2023.12.03"]
[Round "9.12"]
[White "Djokic, Mihailo"]
[Black "Mensing, Adrian"]
[Result "1-0"]
[ECO "B92"]
[WhiteElo "2170"]
[BlackElo "2022"]
[Annotator "NA"]
[PlyCount "77"]
[EventDate "2023.10.23"]
[EventType "swiss"]
[EventCountry "SRB"]
[SourceTitle "playchess.com"]
[Source "ChessBase"]
[SourceQuality "1"]
[TimeControl "40/5400+30:900+30"]

1. e4 {[%emt 1:31:00]} c5 {[%emt 1:31:00]} 2. Nf3 {[%emt 0:00:00]} d6 {[%emt 0:00:30]} 3. d4 {[%emt 0:01:00]} cxd4 {[%emt 0:00:30]} 4. Nxd4 {[%emt 0:00:30]} Nf6 {[%emt 0:00:00]} 5. Nc3 {[%emt 0:00:30]} a6 {[%emt 0:01:00]} 6. Be2 {[%emt 0:00:30]} e5 {[%emt 0:00:30]} 7. Nf3 {[%emt 0:00:30]} Be7 {[%emt 0:00:00]} 8. Bg5 {[%emt 0:00:30]} Be6 {[%emt 0:00:00]} 9. Bxf6 {[%emt 0:00:30]} Bxf6 {[%emt 0:01:30]} 10. Nd5 {[%emt 0:00:30]} Nd7 {[%emt 0:00:30]} 11. O-O {[%emt 0:00:30]} Rc8 {[%emt 0:00:30]} 12. Nd2 {[%emt 0:00:30]} Bg5 {[%emt 0:00:30]} 13. Nc4 {[%emt 0:00:30]} Nf6 {[%emt 0:00:30]} 14. Nxf6+ {[%emt 0:00:30]} Bxf6 {[%emt 0:00:00]} 15. Nxd6+ {[%emt 0:00:30]} Ke7 {[%emt 0:01:00]} 16. Nxc8+ {[%emt 0:00:30]} Qxc8 {[%emt 0:00:30]} 17. c3 {[%emt 0:00:30]} h5 {[%emt 0:00:30]} 18. Qa4 {[%emt 0:00:30]} Kf8 {[%emt 0:00:30]} 19. Rad1 {[%emt 0:00:30]} h4 {[%emt 0:00:30]} 20. Qb4+ {[%emt 0:00:30]} Kg8 {[%emt 0:00:30]} 21. f4 {[%emt 0:00:30]} exf4 {[%emt 0:00:00]} 22. Qd6 {[%emt 0:00:30]} h3 {[%emt 0:01:00]} 23. Qxf4 {[%emt 0:00:30]} hxg2 {[%emt 0:00:30]} 24. Rf2 {[%emt 0:00:30]} Rh4 {[%emt 0:00:30]} 25. Qd6 {[%emt 0:00:30]} Rh6 {[%emt 0:00:30]} 26. Rxg2 {[%emt 0:00:30]} Bh4 {[%emt 0:00:30]} 27. Rd5 {[%emt 0:00:30]} g6 {[%emt 0:00:30]} 28. Rc5 {[%emt 0:00:30]} Qe8 {[%emt 0:00:00]} 29. Qf4 {[%emt 0:00:30]} Qf8 {[%emt 0:00:00]} 30. Rc7 {[%emt 0:00:30]} Bd8 {[%emt 0:01:30]} 31. Rxb7 {[%emt 0:00:30]} Qc5+ {[%emt 0:00:30]} 32. Kh1 {[%emt 0:00:00]} Rh4 {[%emt 0:00:00]} 33. Qb8 {[%emt 0:00:00]} Bc8 {[%emt 0:01:00]} 34. Rd7 {[%emt 0:01:30]} Bb6 35. Rd5 Qc6 36. Rd6 Rxh2+ 37. Kxh2 Bc7 38. Qxc8+ Kg7 39. e5 1-0

[Event "36th Belgrade Trophy 2023"]
[Site "Belgrade"]
[Date "2023.12.03"]
[Round "9.13"]
[White "Oliinyk, Serafim"]
[Black "Kijanovic, Igor"]
[Result "1-0"]
[ECO "B12"]
[WhiteElo "1990"]
[BlackElo "2163"]
[Annotator "ChessBase"]
[PlyCount "57"]
[EventDate "2023.10.23"]
[EventType "swiss"]
[EventCountry "SRB"]
[SourceTitle "playchess.com"]
[Source "ChessBase"]
[SourceQuality "1"]
[TimeControl "40/5400+30:900+30"]

1. e4 {[%emt 0:12:33]} c6 {[%emt 0:00:43]} 2. d4 {[%emt 0:01:35]} d5 {[%emt 0:00:10]} 3. e5 {[%emt 0:00:02]} Bf5 {[%emt 0:00:19]} 4. h4 {[%emt 0:00:17]} h5 {[%emt 0:01:51]} 5. Bd3 {[%emt 0:00:55]} Bxd3 {[%emt 0:00:33]} 6. Qxd3 {[%emt 0:00:02]} Qa5+ {[%emt 0:02:34]} 7. Nd2 {[%emt 0:03:12]} e6 {[%emt 0:01:38]} 8. Ne2 {[%emt 0:00:25]} Ne7 {[%emt 0:01:27]} 9. Ng3 {[%emt 0:00:41]} Qa6 {[%emt 0:01:28]} 10. c4 {[%emt 0:00:13]} Nd7 {[%emt 0:01:49]} 11. O-O {[%emt 0:01:20]} Ng6 {[%emt 0:08:19]} 12. f4 {[%emt 0:01:29]} Nxh4 {[%emt 0:00:10]} 13. f5 {[%emt 0:00:14]} O-O-O {[%emt 0:00:22]} 14. b4 {[%emt 0:02:53]} Bxb4 {[%emt 0:04:10]} 15. Rb1 {[%emt 0:02:17]} Ba5 {[%emt 0:11:30]} 16. Qc2 {[%emt 0:06:00]} Rdf8 {[%emt 0:05:51]} 17. cxd5 {[%emt 0:05:47]} exd5 {[%emt 0:00:06]} 18. Nb3 {[%emt 0:01:24]} Bd8 {[%emt 0:07:49]} 19. Bf4 {[%emt 0:12:03]} g5 {[%emt 0:06:15]} 20. Be3 {[%emt 0:00:36]} Be7 {[%emt 0:13:32]} 21. f6 {[%emt 0:03:41]} Ba3 {[%emt 0:00:06]} 22. Bxg5 {[%emt 0:01:02]} Nxg2 {[%emt 0:02:02]} 23. Qxg2 {[%emt 0:05:36]} Rfg8 {[%emt 0:02:06]} 24. Nf5 {[%emt 0:03:53]} Nf8 {[%emt 0:00:08]} 25. Ng7 {[%emt 0:01:18]} Ne6 {[%emt 0:00:31]} 26. Nxe6 {[%emt 0:06:13]} fxe6 {[%emt 0:00:05]} 27. f7 {[%emt 0:00:49]} Be7 {[%emt 0:01:19]} 28. fxg8=Q+ {[%emt 0:00:28]} Rxg8 {[%emt 0:27:37]} 29. Rf6 {[%emt 0:00:39]} 1-0